{"text_format":"3","workbook":"xlsx","n_sheets":2,"sheets":["list","data"],"not_rendered":{"defined_names":8},"read":"whole","date_system":"1900"}

{"sheet":"list","index":0,"n_rows":52,"n_cols":15,"rows_kept":52}
["№","Название ОУ","Фамилия","Имя","Участник с ОВЗ","Класс","Класс участия","Первичный балл","Добавлено по итогам апелляций","Итоговый балл","Макс. Балл","Статус","Призер регионального / республиканского этапа прошлого года","Учитель","Место работы учителя"]
[1,"МБОУ \"Стародрожжановская сош №1\"","Митрошкина","Мария",null,7,7,9.5,null,9.5,{"v":50,"d":"50.00"},"участник",null,"Шуркина Ольга Васильевна","МБОУ \"Стародрожжановская сош №1\""]
[2,"МБОУ \"Стародрожжановская сош №1\"","Долгова","Валерия",null,7,7,4,null,4,50,{"$f":"$L$2","v":"участник"},null,"Шуркина Ольга Васильевна","МБОУ \"Стародрожжановская сош №1\""]
[3,"МБОУ \"Чувашско-Дрожжановская СОШ\"","Хемницер","Елена",null,7,7,9.5,null,9.5,{"v":50,"d":"50.00"},"участник",null,"Петрова Валентина Николаевна","МБОУ \"Чувашско-Дрожжановская СОШ\" Дрожжановского муниципального района Республики Татарстан"]
[4,"МБОУ \"Хорновар-Шигалинская СОШ имени Героя Советского Союза Юхвитова П.С.\"","Емельянова","Камилла",null,7,7,11.5,null,11.5,{"v":50,"d":"50.00"},"участник",null,"Сандиярова Галина Николаевна","МБОУ \"Хорновар-Шигалинская СОШ имени Героя Советского Союза Юхвитова П.С.\""]
[5,"МБОУ \"Новоильмовская СОШ\"","Архипова","Вероника",null,7,7,6.5,null,6.5,{"v":50,"d":"50.00"},"участник",null,"Казакова Любовь Владимировна","МБОУ \"Новоильмовская СОШ\""]
[null,"МБОУ \"Большеаксинская СОШ\"","Давыдова","Полина",null,7,7,4.5,null,4.5,{"v":50,"d":"50.00"},"участник",null,"Ярмушова Валентина Николаевна","МБОУ \"Большеаксинская СОШ\" Дрожжановского муниципального района РТ"]
[null,"МБОУ \"Большеаксинская СОШ\"","Малова","Варвара",null,7,7,3.5,null,3.5,{"v":50,"d":"50.00"},"участник",null,"Ярмушова Валентина Николаевна","МБОУ \"Большеаксинская СОШ\" Дрожжановского муниципального района РТ"]
[null,"МБОУ \"Убеевская СОШ имени Дементьева П.В.\"","Андреева","Арина",null,8,8,11,null,11,{"v":50,"d":"50.00"},"участник",null,"Сердцева Надежда Александровна","МБОУ \"Убеевская СОШ им. Дементьева П.В.\""]
[null,"МБОУ \"Убеевская СОШ имени Дементьева П.В.\"","Ильбикин","Илья",null,8,8,8,null,8,{"v":50,"d":"50.00"},"участник",null,"Сердцева Надежда Александровна","МБОУ \"Убеевская СОШ им. Дементьева П.В.\""]
[null,"МБОУ \"Хорновар-Шигалинская СОШ имени Героя Советского Союза Юхвитова П.С.\"","Денисов","Федор",null,8,8,22,null,22,{"v":50,"d":"50.00"},"призёр",null,"Сандиярова Галина Николаевна","МБОУ \"Хорновар-Шигалинская СОШ имени Героя Советского Союза Юхвитова П.С.\""]
[null,"МБОУ \"Хорновар-Шигалинская СОШ имени Героя Советского Союза Юхвитова П.С.\"","Ильбеев","Руслан",null,8,8,11,null,11,{"v":50,"d":"50.00"},{"$f":"$L$2","v":"участник"},null,"Сандиярова Галина Николаевна","МБОУ \"Хорновар-Шигалинская СОШ имени Героя Советского Союза Юхвитова П.С.\""]
[null,"МБОУ \"Новоильмовская СОШ\"","Алексеева","Анита",null,8,8,8,null,8,{"v":50,"d":"50.00"},{"$f":"$L$2","v":"участник"},null,"Казакова Любовь Владимировна","МБОУ \"Новоильмовская СОШ\""]
[null,"МБОУ \"Новоильмовская СОШ\"","Яковлева","Есения",null,8,8,9,null,9,{"v":50,"d":"50.00"},{"$f":"$L$13","v":"участник"},null,"Казакова Любовь Владимировна","МБОУ \"Новоильмовская СОШ\""]
[null,"МБОУ \"Матакская сош имени Героя Советского Союза С.А.Уганина\"","Кузнецова","Ника",null,8,8,22,null,22,{"v":50,"d":"50.00"},"призёр",null,"Савельева Светлана Федоровна","МБОУ «Матакская сош имени Героя Советского Союза С. А. Уганина» Дрожжановского муниципального района Республики Татарстан"]
[null,"МБОУ \"Городищенская СОШ имени Г.Т.Семенова\"","Каранкина","Алина",null,8,8,10.5,null,10.5,{"v":50,"d":"50.00"},{"$f":"$L$14","v":"участник"},null,"Тарасова Наталья Ильинична","МБОУ \"Городищенская СОШ имени Г.Т.Семенова\""]
[null,"МБОУ \"Городищенская СОШ имени Г.Т.Семенова\"","Храмова","Виктория",null,8,8,26.5,null,26.5,{"v":50,"d":"50.00"},"победитель",null,"Тарасова Наталья Ильинична","МБОУ \"Городищенская СОШ имени Г.Т.Семенова\""]
[null,"МБОУ \"Большеаксинская СОШ\"","Унисков","Федор",null,8,8,18,null,18,{"v":50,"d":"50.00"},{"$f":"$L$16","v":"участник"},null,"Ярмушова Валентина Николаевна","МБОУ \"Большеаксинская СОШ\" Дрожжановского муниципального района РТ"]
[null,"МБОУ \"Большеаксинская СОШ\"","Карабаева","Яна",null,8,8,8,null,8,{"v":50,"d":"50.00"},{"$f":"$L$16","v":"участник"},null,"Ярмушова Валентина Николаевна","МБОУ \"Большеаксинская СОШ\" Дрожжановского муниципального района РТ"]
[null,"МБОУ \"Большеаксинская СОШ\"","Мишкин","Александр",null,8,8,17.5,null,17.5,{"v":50,"d":"50.00"},{"$f":"$L$16","v":"участник"},null,"Ярмушова Валентина Николаевна","МБОУ \"Большеаксинская СОШ\" Дрожжановского муниципального района РТ"]
[null,"МБОУ \"Алешкин-Саплыкская СОШ имени Длементьева В.С.\"","Филиппов","Матвей",null,8,8,26,null,26,{"v":50,"d":"50.00"},"призёр",null,"Григорьева Надежда Васильевна","МБОУ \"Алешкин-Саплыкская средняя общеобразовательная школа имени Дементьева В.С.\"Дрожжановского муниципального района"]
[null,"МБОУ \"Стародрожжановский многопрофильный лицей\"","Калякова","Полина",null,8,8,11,null,11,{"v":50,"d":"50.00"},{"$f":"$L$20","v":"участник"},null,"Арсентьева Алевтина Николаевна","МБОУ \"Стародрожжановский многопрофильный лицей\""]
[null,"МБОУ \"Стародрожжановская сош №1\"","Артемьева","Софья",null,9,9,11.5,null,11.5,{"v":50,"d":"50.00"},"участник",null,"Исхакова Алена Петровна","МБОУ \"Стародрожжановская сош №1\""]
[null,"МБОУ \"Стародрожжановская сош №1\"","Юманов","Станислав",null,9,9,7,null,7,{"v":50,"d":"50.00"},"участник",null,"Исхакова Алена Петровна","МБОУ \"Стародрожжановская сош №1\""]
[null,"МБОУ \"Чувашско-Дрожжановская СОШ\"","Романов","Дмитрий",null,9,9,19,null,19,{"v":50,"d":"50.00"},"участник",null,"Петрова Валентина Николаевна","МБОУ \"Чувашско-Дрожжановская СОШ\" Дрожжановского муниципального района Республики Татарстан"]
[null,"МБОУ \"Старошаймурзинская СОШ\"","Прохорова","Ева",null,9,9,11.5,null,11.5,{"v":50,"d":"50.00"},"участник",null,"Никифорова Елена Вальфредовна","МБОУ \"Старошаймурзинская СОШ\" Дрожжановского муниципального района РТ"]
[null,"МБОУ \"Новоильмовская СОШ\"","Изендеева","Яна",null,9,9,10,null,10,{"v":50,"d":"50.00"},"участник",null,"Казакова Любовь Владимировна","МБОУ \"Новоильмовская СОШ\""]
[null,"МБОУ \"Матакская сош имени Героя Советского Союза С.А.Уганина\"","Буланова","Полина",null,9,9,30.5,null,30.5,{"v":50,"d":"50.00"},"победитель",null,"Ермолаева Марина Ивановна","МБОУ «Матакская сош имени Героя Советского Союза С. А. Уганина» Дрожжановского муниципального района Республики Татарстан"]
[null,"МБОУ \"Матакская сош имени Героя Советского Союза С.А.Уганина\"","Ермолаева","Софья",null,9,9,25,null,25,{"v":50,"d":"50.00"},"призёр",null,"Ермолаева Марина Ивановна","МБОУ «Матакская сош имени Героя Советского Союза С. А. Уганина» Дрожжановского муниципального района Республики Татарстан"]
[null,"МБОУ \"Городищенская СОШ имени Г.Т.Семенова\"","Архипова","Анастасия",null,9,9,14,null,14,{"v":50,"d":"50.00"},{"$f":"$L$27","v":"участник"},null,"Тарасова Наталья Ильинична","МБОУ \"Городищенская СОШ имени Г.Т.Семенова\""]
[null,"МБОУ \"Городищенская СОШ имени Г.Т.Семенова\"","Аюгина","Снежанна",null,9,9,15,null,15,{"v":50,"d":"50.00"},"участник",null,"Тарасова Наталья Ильинична","МБОУ \"Городищенская СОШ имени Г.Т.Семенова\""]
[null,"МБОУ \"Городищенская СОШ имени Г.Т.Семенова\"","Храмова","Валерия",null,9,9,17,null,17,{"v":50,"d":"50.00"},"участник",null,"Тарасова Наталья Ильинична","МБОУ \"Городищенская СОШ имени Г.Т.Семенова\""]
[null,"МБОУ \"Городищенская СОШ имени Г.Т.Семенова\"","Головин","Арсений",null,9,9,14,null,14,{"v":50,"d":"50.00"},"участник",null,"Тарасова Наталья Ильинична","МБОУ \"Городищенская СОШ имени Г.Т.Семенова\""]
[null,"МБОУ \"Новоубеевская ООШ\"","Макарова","Анастасия",null,9,9,14.5,null,14.5,{"v":50,"d":"50.00"},"участник",null,"Ярухина Людмила Александровна.","МБОУ \"Новоубеевская ООШ\""]
[null,"МБОУ \"Новоубеевская ООШ\"","Ярзуткина","Софья",null,9,9,11.5,null,11.5,{"v":50,"d":"50.00"},"участник",null,"Ярухина Людмила Александровна.","МБОУ \"Новоубеевская ООШ\""]
[null,"МБОУ \"Стародрожжановская сош №1\"","Иванцова","Стелла",null,10,10,25,null,25,{"v":50,"d":"50.00"},"призёр",null,"Шуркина Ольга Васильевна","МБОУ \"Стародрожжановская сош №1\""]
[null,"МБОУ \"Стародрожжановская сош №1\"","Борисова","Валентина",null,10,10,31.5,null,31.5,{"v":50,"d":"50.00"},"победитель",null,"Шишкина Надежда Александровна","МБОУ \"Стародрожжановская сош №1\""]
[null,"МБОУ \"Чувашско-Дрожжановская СОШ\"","Хрисанова","Вероника",null,10,10,25,null,25,{"v":50,"d":"50.00"},"призёр",null,"Петрова Валентина Николаевна","МБОУ \"Чувашско-Дрожжановская СОШ\" Дрожжановского муниципального района Республики Татарстан"]
[null,"МБОУ \"Чувашско-Дрожжановская СОШ\"","Конторская","Карина",null,10,10,13.5,null,13.5,{"v":50,"d":"50.00"},{"$f":"$L$35","v":"участник"},null,"Петрова Валентина Николаевна","МБОУ \"Чувашско-Дрожжановская СОШ\" Дрожжановского муниципального района Республики Татарстан"]
[null,"МБОУ \"Городищенская СОШ имени Г.Т.Семенова\"","Никитин","Евгений",null,10,10,15.5,null,15.5,{"v":50,"d":"50.00"},{"$f":"$L$35","v":"участник"},null,"Тарасова Наталья Ильинична","МБОУ \"Городищенская СОШ имени Г.Т.Семенова\""]
[null,"МБОУ \"Большеаксинская СОШ\"","Мутина","Ирина",null,10,10,17.5,null,17.5,{"v":50,"d":"50.00"},{"$f":"$L$35","v":"участник"},null,"Ярмушова Валентина Николаевна","МБОУ \"Большеаксинская СОШ\" Дрожжановского муниципального района РТ"]
[null,"МБОУ \"Стародрожжановский многопрофильный лицей\"","Ситнова","Милана",null,10,10,17.5,null,17.5,{"v":50,"d":"50.00"},{"$f":"$L$35","v":"участник"},null,"Арсентьева Алевтина Николаевна","МБОУ \"Стародрожжановский многопрофильный лицей\""]
[null,"МБОУ \"Убеевская СОШ имени Дементьева П.В.\"","Молгачев","Егор",null,11,11,25.5,null,25.5,{"v":50,"d":"50.00"},"призёр",null,"Сердцева Надежда Александровна","МБОУ \"Убеевская СОШ им. Дементьева П.В.\""]
[null,"МБОУ \"Убеевская СОШ имени Дементьева П.В.\"","Маркова","Валерия",null,11,11,25,null,25,{"v":50,"d":"50.00"},"участник",null,"Сердцева Надежда Александровна","МБОУ \"Убеевская СОШ им. Дементьева П.В.\""]
[null,"МБОУ \"Убеевская СОШ имени Дементьева П.В.\"","Ярухин","Леонид",null,11,11,16,null,16,{"v":50,"d":"50.00"},{"$f":"$L$42","v":"участник"},null,"Сердцева Надежда Александровна","МБОУ \"Убеевская СОШ им. Дементьева П.В.\""]
[null,"МБОУ \"Чувашско-Дрожжановская СОШ\"","Синдюкова","Евгения",null,11,11,37.5,null,37.5,{"v":50,"d":"50.00"},"победитель",null,"Петрова Валентина Николаевна","МБОУ \"Чувашско-Дрожжановская СОШ\" Дрожжановского муниципального района Республики Татарстан"]
[null,"МБОУ \"Городищенская СОШ имени Г.Т.Семенова\"","Мокшин","Ярослав",null,11,11,16.5,null,16.5,{"v":50,"d":"50.00"},{"$f":"$L$45","v":"участник"},null,"Тарасова Наталья Ильинична","МБОУ \"Городищенская СОШ имени Г.Т.Семенова\""]
[null,"МБОУ \"Городищенская СОШ имени Г.Т.Семенова\"","Никитина","Ксения",null,11,11,16.5,null,16.5,{"v":50,"d":"50.00"},{"$f":"$L$47","v":"участник"},null,"Тарасова Наталья Ильинична","МБОУ \"Городищенская СОШ имени Г.Т.Семенова\""]
[null,"МБОУ \"Городищенская СОШ имени Г.Т.Семенова\"","Храмова","Алина",null,11,11,18,null,18,{"v":50,"d":"50.00"},{"$f":"$L$47","v":"участник"},null,"Тарасова Наталья Ильинична","МБОУ \"Городищенская СОШ имени Г.Т.Семенова\""]
[null,"МБОУ \"Большеаксинская СОШ\"","Карабаева","Ева",null,11,11,26,null,26,{"v":50,"d":"50.00"},"призёр",null,"Ярмушова Валентина Николаевна","МБОУ \"Большеаксинская СОШ\" Дрожжановского муниципального района РТ"]
[null,"МБОУ \"Алешкин-Саплыкская СОШ имени Длементьева В.С.\"","Семенова","Ксения",null,11,11,25.5,null,25.5,{"v":50,"d":"50.00"},"призёр",null,"Григорьева Надежда Васильевна","МБОУ \"Алешкин-Саплыкская средняя общеобразовательная школа имени Дементьева В.С.\"Дрожжановского муниципального района"]
[null,"МБОУ \"Стародрожжановский многопрофильный лицей\"","Николаева","Кира",null,11,11,15.5,null,15.5,{"v":50,"d":"50.00"},{"$f":"$L$48","v":"участник"},null,"Арсентьева Алевтина Николаевна","МБОУ \"Стародрожжановский многопрофильный лицей\""]

{"sheet":"data","index":1,"n_rows":25,"n_cols":10,"rows_kept":25}
[{"$nulls":6},"1 - Техника, технология и техническое творчество","2 - Культура дома, дизайн и технологии","3 - Робототехника","4 - Информационная безопасность"]
["1 - Техника, технологии и техническое творчество","1.1  Практика по ручной деревообработке",{"$nulls":4},"1.1 Практика по ручной деревообработке","2.1 Ручная обработка швейного изделия или узла","3.1 Робототехника","4.1 Не предусмотрена"]
["2 - Культура дома, дизайн и технологии","1.2 Практика по механической деревообработке",{"$nulls":4},"1.2 Практика по механической деревообработке","2.2 Механическая обработка швейного изделия или узла + Моделирование"]
["3 - Робототехника","1.3 Практика по ручной металлообработке",{"$nulls":4},"1.3 Практика по ручной металлообработке","2.3 Обработка швейного изделия или узла на швейно-вышивальном оборудовании + Моделирование"]
["4 - Информационная безопасность","1.4 Практика по механической металлообработке",{"$nulls":4},"1.4 Практика по механической металлообработке","2.4 3D-моделирование и печать"]
[null,"1.5 Электрорадиотехника",{"$nulls":4},"1.5 Электрорадиотехника","2.5 Практика по работе на лазерно-гравировальном станке"]
[null,"1.6 3D-моделирование и печать",{"$nulls":4},"1.6 3D-моделирование и печать","2.6 Промышленный дизайн"]
[null,"1.7 Практика по работе на лазерно-гравировальном станке",{"$nulls":4},"1.7 Практика по работе на лазерно-гравировальном станке"]
[null,"1.8 Промышленный дизайн",{"$nulls":4},"1.8 Промышленный дизайн"]
[null,"2.1 Ручная обработка швейного изделия или узла"]
[null,"2.2 Механическая обработка швейного изделия или узла + Моделирование"]
[null,"2.3 Обработка швейного изделия или узла на швейно-вышивальном оборудовании + Моделирование"]
[null,"2.4 3D-моделирование и печать"]
[null,"2.5 Практика по работе на лазерно-гравировальном станке"]
[null,"2.6 Промышленный дизайн"]
[null,"3.1 Робототехника"]
[null,"4.1 Не предусмотрена"]
[]
[]
[]
[]
[]
["участник"]
["призер",null,"да","да",null,"м"]
["победитель",null,null,"нет",null,"ж"]